bitfinex-derivatives/quotes_BTCF0:USTF0_20260107
["timestamp","ask_amount","ask_price","bid_price","bid_amount"]
[1767812691043,0.010981,91145.0,91126.0,0.0934]
[1767812691643,0.09009626,91147.0,91127.0,0.010983]
[1767812691849,0.14164016,91135.0,91107.0,0.07276579]
[1767812692052,0.09009626,91132.0,91111.0,0.04387741]
[1767812692240,0.09009626,91132.0,91110.0,0.09966951]
[1767812692241,0.09009626,91132.0,91112.0,0.0934]
[1767812692642,0.09009626,91132.0,91113.0,0.0934]
[1767812692850,0.09009626,91132.0,91113.0,0.0894]
[1767812693066,0.14164016,91132.0,91106.0,0.04306712]
[1767812693245,0.09009626,91131.0,91107.0,0.13642712]
[1767812693450,0.09009626,91131.0,91110.0,0.04270617]
[1767812694956,0.09009626,91131.0,91111.0,0.04487961]
[1767812695344,0.09009626,91131.0,91112.0,0.09336]
[1767812695759,0.0515439,91142.0,91118.0,0.09966951]
[1767812696055,0.09009626,91145.0,91122.0,0.14403211]
[1767812696256,0.09009626,91145.0,91123.0,0.09336]
[1767812696459,0.09009626,91145.0,91123.0,0.08936]
[1767812696766,0.01098,91150.0,91126.0,0.04328893]
[1767812696949,0.010981,91147.0,91126.0,0.09966951]
[1767812697256,0.10107726,91145.0,91123.0,0.08936]
[1767812697757,0.010981,91142.0,91123.0,0.08936]
[1767812697952,0.09009626,91145.0,91123.0,0.08936]
[1767812698859,0.10107726,91144.0,91123.0,0.08936]
[1767812699057,0.09009626,91144.0,91121.0,0.04328893]
[1767812699254,0.09009626,91126.0,91113.0,0.09336]
[1767812699454,0.010982,91136.0,91116.0,0.04205175]
[1767812699753,0.010982,91136.0,91117.0,0.04205175]
[1767812700157,0.010981,91140.0,91117.0,0.04205175]
[1767812700658,0.010982,91137.0,91117.0,0.04205175]
[1767812701058,0.09009626,91140.0,91117.0,0.04205175]
[1767812701258,0.09336,91152.0,91114.0,0.09336]
[1767812701454,0.09336,91152.0,91131.0,0.0483698]
[1767812701652,0.09336,91152.0,91131.0,0.1417298]
[1767812701951,0.09336,91152.0,91131.0,0.1307478]
[1767812702153,0.01098,91150.0,91131.0,0.1307478]
[1767812702467,0.09336,91152.0,91134.0,0.010982]
[1767812702762,0.1028939,91147.0,91119.0,0.03578212]
[1767812702954,0.0919139,91146.0,91125.0,0.010983]
[1767812703153,0.0919139,91146.0,91127.0,0.010983]
[1767812703461,0.01098,91153.0,91135.0,0.03178212]
[1767812703648,0.01098,91151.0,91135.0,0.12514212]
[1767812703849,0.1028949,91147.0,91134.0,0.09336]
[1767812704049,0.1028949,91147.0,91125.0,0.010983]
[1767812704260,0.1028949,91147.0,91126.0,0.09336]
[1767812704462,0.01098,91150.0,91127.0,0.1061481]
[1767812704860,0.01098,91149.0,91127.0,0.1061481]
[1767812705361,0.01098,91152.0,91129.0,0.010983]
[1767812705566,0.01098,91147.0,91127.0,0.0951651]
[1767812705954,0.1028939,91150.0,91128.0,0.010983]
[1767812706158,0.0919139,91143.0,91129.0,0.09336]
[1767812706773,0.01098,91148.0,91129.0,0.09336]
[1767812707077,0.1028939,91148.0,91129.0,0.09336]
[1767812707361,0.09336,91159.0,91129.0,0.09336]
[1767812707362,0.0919139,91143.0,91129.0,0.09336]
[1767812707867,0.0919139,91138.0,91127.0,0.09336]
[1767812708055,0.0919139,91138.0,91124.0,0.09336]
[1767812708652,0.010982,91134.0,91112.0,0.010985]
[1767812708850,0.13795442,91134.0,91116.0,0.010984]
[1767812709052,0.0919139,91147.0,91123.0,0.0951651]
[1767812709363,0.04604052,91152.0,91132.0,0.010982]
[1767812709364,0.09336,91151.0,91132.0,0.010982]
[1767812709561,0.1028939,91150.0,91128.0,0.010983]
[1767812709759,0.0919139,91147.0,91128.0,0.010983]
[1767812709957,0.010981,91146.0,91126.0,0.1885251]
[1767812710157,0.0919139,91145.0,91129.0,0.010983]
[1767812710360,0.0919139,91145.0,91126.0,0.104343]
[1767812711167,0.0919139,91145.0,91131.0,0.010982]
[1767812711556,0.1028949,91144.0,91126.0,0.09336]
[1767812711759,0.0919139,91142.0,91126.0,0.09336]
[1767812711955,0.0919139,91142.0,91125.0,0.010983]
[1767812712162,0.0919139,91142.0,91126.0,0.09336]
[1767812712469,0.0919139,91142.0,91127.0,0.010983]
[1767812713163,0.0919139,91138.0,91122.0,0.010983]
[1767812713366,0.0919139,91138.0,91128.0,0.09336]
[1767812714961,0.13795442,91132.0,91120.0,0.09336]
[1767812715171,0.1028969,91130.0,91118.0,0.09336]
[1767812715355,0.0919139,91130.0,91118.0,0.09336]
[1767812716163,0.0919139,91130.0,91116.0,0.09336]
[1767812716960,0.14893742,91127.0,91112.0,0.09336]
[1767812717162,0.0919139,91126.0,91112.0,0.09336]
[1767812717557,0.1028969,91125.0,91112.0,0.09336]
[1767812717869,0.0919139,91122.0,91112.0,0.09336]
[1767812718370,0.0919139,91122.0,91109.0,0.00219518]
[1767812718671,0.0919139,91122.0,91110.0,0.09336]
[1767812719869,0.0919139,91119.0,91109.0,0.00219518]
[1767812720168,0.14894042,91100.0,91082.0,0.09336]
[1767812720372,0.0919139,91098.0,91082.0,0.09336]
[1767812720564,0.14894042,91098.0,91082.0,0.09336]
[1767812720766,0.14894042,91098.0,91074.0,0.09336]
[1767812720767,0.0919139,91095.0,91074.0,0.09336]
[1767812721069,0.0919139,91095.0,91079.0,0.010989]
[1767812721666,0.09336,91103.0,91074.0,0.09336]
[1767812721667,0.0919139,91091.0,91074.0,0.09336]
[1767812722761,0.0919139,91091.0,91075.0,0.010989]
[1767812724076,0.0919139,91091.0,91077.0,0.010989]
[1767812724372,0.0919139,91091.0,91074.0,0.104349]
[1767812725079,0.0919139,91090.0,91074.0,0.104349]
[1767812725264,0.0919139,91089.0,91074.0,0.09336]
[1767812725461,0.0919139,91086.0,91070.0,0.01099]
[1767812725668,0.0919139,91082.0,91063.0,0.09336]
[1767812725962,0.04604052,91088.0,91070.0,0.01099]
[1767812726174,0.0919139,91089.0,91065.0,0.0222298]
[1767812726575,0.0919139,91089.0,91075.0,0.04]
[1767812726777,0.09336,91089.0,91077.0,0.010989]
[1767812726968,0.09336,91089.0,91075.0,0.04]
[1767812728180,9.89e-05,91094.0,91076.0,0.010989]
[1767812728478,0.09336,91093.0,91076.0,0.010989]
[1767812728873,0.09336,91093.0,91075.0,0.04]
[1767812729975,0.09336,91093.0,91075.0,0.050989]
[1767812730880,0.0919139,91085.0,91075.0,0.04]
[1767812731077,0.0919139,91085.0,91069.0,0.01099]
[1767812731277,0.0919139,91085.0,91062.0,0.11461478]
[1767812731477,0.0919139,91085.0,91070.0,0.01099]
[1767812731673,0.09336,91093.0,91071.0,0.0951651]
[1767812731878,0.09336,91093.0,91073.0,0.010989]
[1767812732076,0.09918428,91086.0,91070.0,0.01099]
[1767812732285,0.010987,91090.0,91070.0,0.01099]
[1767812732286,0.09918428,91084.0,91070.0,0.01099]
[1767812732474,0.09918428,91084.0,91067.0,0.01099]
[1767812732673,0.04093268,91087.0,91059.0,0.01900396]
[1767812732878,0.14011696,91087.0,91069.0,0.01099]
[1767812733481,0.14011696,91087.0,91071.0,0.01099]
[1767812733783,0.14011696,91087.0,91073.0,0.010989]
[1767812734883,0.14011696,91087.0,91064.0,0.01876596]
[1767812735082,0.14011696,91087.0,91069.0,0.01099]
[1767812735484,0.14011696,91087.0,91071.0,0.01099]
[1767812737487,0.09918428,91087.0,91067.0,0.01977547]
[1767812739283,0.09918428,91087.0,91071.0,0.01099]
[1767812739486,0.09918428,91087.0,91067.0,0.01977547]
[1767812740485,0.09918428,91087.0,91073.0,0.010989]
[1767812740681,0.14011696,91087.0,91066.0,0.09768148]
[1767812740881,0.09918428,91086.0,91072.0,0.010989]
[1767812741987,0.09918428,91085.0,91069.0,0.01099]
[1767812742182,0.09918428,91084.0,91071.0,0.01099]
[1767812742389,0.09918428,91084.0,91072.0,0.010989]
[1767812743281,0.09918428,91084.0,91064.0,0.01759437]
[1767812743482,0.09918428,91084.0,91065.0,0.02784413]
[1767812743683,0.0934,91091.0,91071.0,0.01685413]
[1767812743888,0.09918428,91084.0,91063.0,0.09336]
[1767812744083,0.14011696,91079.0,91063.0,0.09336]
[1767812744284,0.14011696,91079.0,91064.0,0.10979599]
[1767812745612,0.14011696,91079.0,91055.0,0.010991]
[1767812745613,0.04093268,91078.0,91051.0,0.0934]
[1767812745798,0.04093268,91078.0,91059.0,0.010991]
[1767812745998,0.04093268,91078.0,91061.0,0.010991]
[1767812746292,0.04093268,91078.0,91065.0,0.01099]
[1767812746696,0.04093268,91078.0,91056.0,0.12493218]
[1767812747094,0.04093268,91078.0,91063.0,0.010991]
[1767812747295,0.04093268,91078.0,91066.0,0.01099]
[1767812747887,0.04093268,91078.0,91057.0,0.12883664]
[1767812748093,0.0934,91080.0,91060.0,0.09768148]
[1767812748488,0.04093268,91084.0,91062.0,0.09768148]
[1767812748688,0.04093268,91084.0,91071.0,0.01099]
[1767812748892,0.05192068,91084.0,91065.0,0.01099]
[1767812749091,0.04093268,91082.0,91065.0,0.01099]
[1767812749690,0.04093268,91081.0,91065.0,0.01099]
[1767812749891,0.14011696,91079.0,91061.0,0.0934]
[1767812750099,0.04093268,91077.0,91062.0,0.010991]
[1767812750395,0.09918428,91073.0,91046.0,0.0283251]
[1767812750595,0.09918428,91073.0,91026.0,0.0934]
[1767812750596,0.14011696,91046.0,91026.0,0.0934]
[1767812750790,0.14011696,91046.0,91010.0,0.183]
[1767812750791,0.14011696,91043.0,91015.0,0.09768148]
[1767812751092,0.14011696,91039.0,91015.0,0.09768148]
[1767812751296,0.14011696,91037.0,91015.0,0.09768148]
[1767812751802,0.00011195,91036.0,91015.0,0.09768148]
[1767812751993,0.04104463,91036.0,90990.0,0.014649]
[1767812752193,0.04093268,91023.0,91015.0,0.04987322]
[1767812752387,0.14011696,91023.0,90999.0,0.09768148]
[1767812752592,0.09918428,91021.0,91000.0,0.104398]
[1767812752792,0.09918428,91021.0,91000.0,0.0934]
[1767812752994,0.09918428,91018.0,90994.0,0.640519]
[1767812753194,0.09918428,91018.0,91001.0,0.0934]
[1767812753697,0.09918428,91018.0,90993.0,0.13961714]
[1767812753698,0.010996,91015.0,90993.0,0.13961714]
[1767812753898,0.09918428,91007.0,90994.0,0.0934]
[1767812754104,0.09928893,91006.0,90989.0,0.00233113]
[1767812754601,0.0934,91023.0,90996.0,0.13961714]
[1767812754800,0.11018028,91022.0,90998.0,0.010998]
[1767812754996,0.09918428,91022.0,91002.0,0.010998]
[1767812755296,0.05192768,91027.0,91003.0,0.0934]
[1767812755599,0.00011717,91026.0,91004.0,0.010998]
[1767812756100,0.00011717,91026.0,91003.0,0.0934]
[1767812756399,0.00011717,91026.0,91004.0,0.010998]
[1767812757102,0.14011696,91021.0,90990.0,0.00065]
[1767812757304,0.09918428,90998.0,90985.0,0.09344]
[1767812757597,0.09918428,90998.0,90986.0,0.09344]
[1767812757899,0.09918428,91005.0,90987.0,0.09344]
[1767812758103,0.09918428,91005.0,90988.0,0.09344]
[1767812758294,0.00014104,91004.0,90989.0,0.09344]
[1767812758493,0.00014104,91004.0,90990.0,0.09344]
[1767812758700,0.010998,91003.0,90990.0,0.09344]
[1767812758901,0.010998,91000.0,90990.0,0.09344]
[1767812759093,0.010998,91003.0,90990.0,0.09344]
[1767812759293,0.010998,91001.0,90991.0,0.09344]
[1767812759498,0.010998,91001.0,90992.0,0.09344]
[1767812759696,0.00014104,91004.0,90982.0,0.09768148]
[1767812759894,0.011002,90970.0,90959.0,0.0021988]
[1767812760093,0.09918428,90966.0,90949.0,0.09344]
[1767812760303,0.09918428,90964.0,90938.0,0.011006]
[1767812760505,9.211e-05,90969.0,90943.0,0.09768148]
[1767812760699,9.211e-05,90969.0,90944.0,0.14638066]
[1767812761009,9.211e-05,90969.0,90946.0,0.13961714]
[1767812761198,9.211e-05,90969.0,90949.0,0.04406471]
[1767812761690,9.211e-05,90969.0,90951.0,0.13757944]
[1767812761895,9.211e-05,90969.0,90952.0,0.04281528]
[1767812762409,9.211e-05,90969.0,90940.0,0.15082043]
[1767812762410,0.10513179,90958.0,90950.0,0.09344]
[1767812762595,0.10513179,90958.0,90929.0,0.04501481]
[1767812762596,0.09412879,90955.0,90947.0,0.09348]
[1767812762802,0.011003,90960.0,90947.0,0.09348]
[1767812763002,9.211e-05,90969.0,90947.0,0.09348]
[1767812763003,0.011002,90968.0,90947.0,0.09348]
[1767812763202,0.011002,90968.0,90947.0,0.18824416]
[1767812763503,9.211e-05,90969.0,90948.0,0.09476416]
[1767812763707,9.211e-05,90969.0,90950.0,0.09476416]
[1767812766603,0.01109411,90969.0,90950.0,0.09476416]
[1767812766803,9.211e-05,90969.0,90950.0,0.04281528]
[1767812767015,9.211e-05,90969.0,90951.0,0.09476416]
[1767812767206,0.011001,90981.0,90961.0,0.09476416]
[1767812767409,0.09412879,90987.0,90962.0,0.18824416]
[1767812767610,0.09412879,90987.0,90963.0,0.09476416]
[1767812768202,0.011,90983.0,90963.0,0.09476416]
[1767812768511,0.011001,90981.0,90963.0,0.09476416]
[1767812768708,0.011001,90976.0,90954.0,0.74676416]
[1767812769012,0.011001,90976.0,90955.0,0.09348]
[1767812769206,0.011,90981.0,90956.0,0.14858244]
[1767812769410,0.11168661,90985.0,90959.0,0.09476416]
[1767812769411,0.011001,90979.0,90959.0,0.09476416]
[1767812771815,0.011,90983.0,90959.0,0.09476416]
[1767812772014,0.011001,90979.0,90959.0,0.09476416]
[1767812772414,0.09412879,90985.0,90959.0,0.09476416]
[1767812772716,0.09348,90991.0,90960.0,0.09348]
[1767812773219,0.011001,90974.0,90960.0,0.09348]
[1767812773608,0.00013864,90973.0,90960.0,0.09348]
[1767812774321,0.00013864,90973.0,90960.0,0.18824416]
[1767812774514,0.01114064,90973.0,90961.0,0.09476416]
[1767812774917,0.00013864,90973.0,90961.0,0.09476416]
[1767812775408,0.00013864,90973.0,90951.0,0.09476416]
[1767812775622,0.01227681,90969.0,90952.0,0.09352]
[1767812775813,0.01227681,90969.0,90953.0,0.09352]
[1767812776016,0.011003,90962.0,90953.0,0.09352]
[1767812776521,0.01227681,90969.0,90953.0,0.09352]
[1767812776710,0.011003,90957.0,90944.0,0.09476416]
[1767812776910,0.01180007,90967.0,90945.0,0.09352]
[1767812777517,0.011004,90956.0,90944.0,0.09476416]
[1767812777722,0.011004,90956.0,90945.0,0.09352]
[1767812777920,0.01180007,90967.0,90945.0,0.09352]
[1767812777921,0.01131813,90973.0,90946.0,0.09476416]
[1767812778116,0.011003,90962.0,90950.0,0.13757944]
[1767812778925,0.011002,90965.0,90950.0,0.13757944]
[1767812779223,0.011002,90965.0,90951.0,0.09476416]
[1767812779427,0.011003,90963.0,90951.0,0.09476416]
[1767812779926,0.00723965,90971.0,90942.0,0.09476416]
[1767812780124,0.011004,90952.0,90943.0,0.09352]
[1767812780327,0.011004,90955.0,90943.0,0.09352]
[1767812780526,0.011004,90955.0,90942.0,0.09476416]
[1767812780730,0.011004,90955.0,90943.0,0.09352]
[1767812780930,0.011002,90965.0,90943.0,0.09352]
[1767812781131,0.011004,90950.0,90943.0,0.09352]
[1767812781632,0.011004,90953.0,90943.0,0.09352]
[1767812782121,0.011004,90953.0,90941.0,0.18828416]
[1767812782327,0.011004,90952.0,90941.0,0.18828416]
[1767812782529,0.0057603,90963.0,90940.0,0.09352]
[1767812782530,0.011004,90950.0,90940.0,0.09352]
[1767812782731,0.08246596,90963.0,90940.0,0.09352]
[1767812782929,0.0057603,90963.0,90941.0,0.09476416]
[1767812783149,0.011004,90952.0,90941.0,0.09476416]
[1767812783540,0.09352,90961.0,90941.0,0.09476416]
[1767812784146,0.011004,90956.0,90941.0,0.09476416]
[1767812784450,0.09352,90961.0,90941.0,0.09476416]
[1767812785644,0.09352,90961.0,90939.0,0.09352]
[1767812785645,0.10638698,90961.0,90939.0,0.09352]
[1767812785845,0.011003,90959.0,90934.0,0.09476416]
[1767812786149,0.011005,90947.0,90935.0,0.09352]
[1767812786349,8.566e-05,90946.0,90935.0,0.09352]
[1767812786948,8.566e-05,90946.0,90929.0,0.01320653]
[1767812786949,8.566e-05,90946.0,90929.0,0.00219953]
[1767812787146,0.011005,90945.0,90929.0,0.00219953]
[1767812787550,8.566e-05,90946.0,90929.0,0.09696369]
[1767812787752,8.566e-05,90946.0,90929.0,0.13977897]
[1767812787951,8.566e-05,90946.0,90930.0,0.09476416]
[1767812788154,8.566e-05,90946.0,90930.0,0.13757944]
[1767812788448,8.566e-05,90946.0,90933.0,0.09476416]
[1767812788642,0.104524,90950.0,90935.0,0.09476416]
[1767812789655,6.828e-05,90949.0,90935.0,0.09476416]
[1767812789952,0.011005,90948.0,90935.0,0.09476416]
[1767812790153,0.011005,90945.0,90935.0,0.09476416]
[1767812790346,0.011005,90948.0,90935.0,0.09476416]
[1767812790545,6.828e-05,90949.0,90935.0,0.09642276]
[1767812790846,0.01107228,90949.0,90935.0,0.09642276]
[1767812791541,6.828e-05,90949.0,90935.0,0.09642276]
[1767812791747,0.00026357,90948.0,90935.0,0.0016586]
[1767812791944,0.01133585,90973.0,90947.0,0.09849308]
[1767812792152,0.09352,90972.0,90947.0,0.10949808]
[1767812792450,0.011003,90963.0,90947.0,0.09849308]
[1767812792756,0.011002,90967.0,90951.0,0.011004]
[1767812792951,0.011002,90967.0,90949.0,0.09849308]
[1767812794353,0.011002,90970.0,90950.0,0.011004]
[1767812795356,0.011002,90967.0,90950.0,0.011004]
[1767812795859,0.011003,90965.0,90949.0,0.09849308]
[1767812796255,0.09352,90972.0,90949.0,0.09849308]
[1767812796952,0.011003,90959.0,90949.0,0.09849308]
[1767812797259,0.011004,90953.0,90941.0,0.0467706]
[1767812798946,0.09352,90960.0,90934.0,0.011006]
[1767812798947,0.011004,90949.0,90934.0,0.011006]
[1767812799349,0.011004,90956.0,90933.0,0.19201308]
[1767812799547,0.011005,90946.0,90933.0,0.09849308]
[1767812800459,0.011005,90945.0,90933.0,0.09849308]
[1767812800661,0.104523,90960.0,90936.0,0.09849308]
[1767812800848,0.011004,90949.0,90937.0,0.09849308]
[1767812801248,0.011003,90959.0,90939.0,0.09849308]
[1767812802160,0.00880809,90951.0,90939.0,0.09849308]
[1767812802562,0.09869406,90964.0,90935.0,0.0016586]
[1767812802563,0.09869406,90973.0,90949.0,0.0467706]
[1767812802860,0.011002,90965.0,90953.0,0.09849308]
[1767812803056,0.011003,90958.0,90946.0,0.09849308]
[1767812803455,0.11582497,90971.0,90946.0,0.09849308]
[1767812803655,0.011003,90961.0,90947.0,0.09849308]
[1767812804056,0.011003,90960.0,90947.0,0.09849308]
[1767812805563,0.09352,90972.0,90951.0,0.09849308]
[1767812805863,0.0279266,90968.0,90943.0,0.09849308]
[1767812806059,0.011003,90959.0,90948.0,0.09849308]
[1767812806262,0.09352,90963.0,90952.0,0.09849308]
[1767812807063,0.011003,90960.0,90952.0,0.09849308]
[1767812807262,0.104523,90963.0,90952.0,0.09849308]
[1767812807463,0.011003,90960.0,90952.0,0.09849308]
[1767812807763,0.011003,90962.0,90952.0,0.09849308]
[1767812808064,0.09352,90963.0,90939.0,0.0467706]
[1767812808367,0.011004,90956.0,90942.0,0.0467706]
[1767812808663,0.011003,90958.0,90942.0,0.0467706]
[1767812810048,0.011003,90958.0,90945.0,0.09849308]
[1767812810253,0.09352,90963.0,90959.0,8e-07]
[1767812810254,0.011003,90960.0,90959.0,8e-07]
[1767812811660,0.09869406,90980.0,90959.0,8e-07]
[1767812811867,0.011001,90978.0,90959.0,8e-07]
[1767812812068,0.4,90979.0,90959.0,8e-07]
[1767812812276,0.011001,90978.0,90966.0,0.0467706]
[1767812812561,0.011001,90976.0,90966.0,0.0467706]
[1767812812869,0.104521,90979.0,90966.0,0.0467706]
[1767812813362,0.09352,90979.0,90966.0,0.0577726]
[1767812814068,0.09352,90979.0,90966.0,0.15626568]
[1767812814258,0.09352,90981.0,90968.0,0.0577726]
[1767812814660,0.09352,90981.0,90968.0,0.0467706]
[1767812814964,0.09352,90982.0,90974.0,0.011001]
[1767812815169,0.09352,90982.0,90973.0,0.011001]
[1767812816561,0.09869406,90990.0,90968.0,0.14526368]
[1767812816562,0.09869406,90990.0,90975.0,0.011001]
[1767812816758,0.09352,90989.0,90972.0,0.011001]
[1767812817160,0.09352,90989.0,90972.0,0.0577716]
[1767812817861,0.09352,90989.0,90974.0,0.011001]
[1767812818566,0.09132192,90989.0,90974.0,0.011001]
[1767812818872,0.010999,90993.0,90974.0,0.011001]
[1767812819074,0.09352,90988.0,90974.0,0.011001]
[1767812819369,0.09352,90988.0,90972.0,0.0467706]
[1767812819871,0.09352,90988.0,90970.0,0.011002]
[1767812820171,0.09352,90988.0,90972.0,0.011002]
[1767812820367,0.09352,90988.0,90971.0,0.15626568]
[1767812821158,0.010999,90990.0,90971.0,0.15626568]
[1767812821369,0.09352,90989.0,90971.0,0.15626568]
[1767812821563,0.09352,90988.0,90973.0,0.15835769]
[1767812821872,0.09352,90988.0,90975.0,0.011001]
[1767812822373,0.09352,90988.0,90973.0,0.0983476]
[1767812822567,0.09352,90988.0,90969.0,0.04918702]
[1767812823871,0.09352,90988.0,90971.0,0.011002]
[1767812824563,0.010999,90995.0,90976.0,0.04918702]
[1767812824766,0.010999,90991.0,90976.0,0.04918702]
[1767812824966,0.010999,90990.0,90971.0,0.06018902]
[1767812825268,0.09953018,90978.0,90959.0,0.0110038]
[1767812825573,0.09352,90984.0,90962.0,0.04918702]
[1767812825774,0.09953018,90992.0,90973.0,0.06018802]
[1767812825968,0.09352,90991.0,90975.0,0.04918702]
[1767812826164,0.09352,90994.0,90981.0,0.04918702]
[1767812826567,0.09132264,90994.0,90981.0,0.04918702]
[1767812826766,0.09132264,90994.0,90977.0,0.011001]
[1767812827276,0.09132264,90994.0,90976.0,0.04918702]
[1767812827769,0.09132264,90994.0,90979.0,0.011001]
[1767812828476,0.010999,90993.0,90976.0,0.04918702]
[1767812828772,0.010999,90991.0,90972.0,0.011002]
[1767812830568,0.09953018,90992.0,90972.0,0.04918702]
[1767812830773,0.09352,90998.0,90978.0,0.06018802]
[1767812831074,0.010999,90997.0,90978.0,0.06018802]
[1767812832475,0.010999,90997.0,90978.0,0.04918702]
[1767812832677,0.09352,90998.0,90978.0,0.04918702]
[1767812832876,0.010999,90994.0,90978.0,0.04918702]
[1767812833773,0.011,90989.0,90974.0,0.04918702]
[1767812834076,0.011,90989.0,90971.0,0.09352]
[1767812834274,0.011,90989.0,90971.0,0.14270702]
[1767812834467,0.010999,90992.0,90974.0,0.011001]
[1767812834878,0.09953018,90994.0,90974.0,0.06018802]
[1767812835568,0.010999,90993.0,90974.0,0.06018802]
[1767812836677,0.010999,90990.0,90974.0,0.04918702]
[1767812837279,0.010999,90993.0,90974.0,0.06018802]
[1767812837478,0.010999,90996.0,90978.0,0.011001]
[1767812837670,0.010999,90996.0,90979.0,0.04918702]
[1767812837870,0.010999,90994.0,90979.0,0.04918702]
[1767812838377,0.010999,90997.0,90979.0,0.04918702]
[1767812838577,0.010999,90995.0,90979.0,0.04918702]
[1767812839769,0.010999,90995.0,90980.0,0.04918702]
[1767812840082,0.010999,90996.0,90980.0,0.04918702]
[1767812840378,0.010999,90995.0,90980.0,0.04918702]
[1767812840686,0.104519,90997.0,90980.0,0.04918702]
[1767812840980,0.010999,90995.0,90980.0,0.04918702]
[1767812841370,0.09352,90997.0,90980.0,0.04918702]
[1767812841570,0.09352,90997.0,90980.0,0.06018802]
[1767812842176,0.09352,90997.0,90980.0,0.04918702]
[1767812843580,0.010999,90996.0,90980.0,0.04918702]
[1767812843985,0.010999,90994.0,90980.0,0.04918702]
[1767812844282,0.09352,90997.0,90980.0,0.04918702]
[1767812845384,0.010999,90993.0,90980.0,0.04918702]
[1767812846272,0.104519,90997.0,90980.0,0.04918702]
[1767812846484,0.104519,90997.0,90980.0,0.06018702]
[1767812846783,0.104519,90997.0,90980.0,0.04918702]
[1767812847680,0.010999,90994.0,90980.0,0.04918702]
[1767812847881,0.09953018,90993.0,90975.0,0.04918702]
[1767812848091,0.09953018,90992.0,90974.0,0.011001]
[1767812848479,0.09953018,90992.0,90975.0,0.011001]
[1767812848979,0.09953018,90992.0,90975.0,0.06018802]
[1767812849179,0.09953018,90992.0,90975.0,0.04918702]
[1767812849180,0.010999,90991.0,90975.0,0.04918702]
[1767812849982,0.09953018,90992.0,90971.0,0.09352]
[1767812850186,0.011001,90978.0,90970.0,0.09352]
[1767812850391,0.011001,90979.0,90970.0,0.09352]
[1767812851089,0.11053018,90982.0,90964.0,0.04918702]
[1767812851278,0.011001,90980.0,90964.0,0.04918702]
[1767812851880,0.09953018,90982.0,90964.0,0.04918702]
[1767812853180,0.011001,90977.0,90964.0,0.04918702]
[1767812853580,0.011001,90977.0,90962.0,0.13985672]
[1767812853891,0.011001,90975.0,90959.0,8e-07]
[1767812854075,0.011001,90975.0,90959.0,0.0935208]
[1767812854580,0.011001,90975.0,90960.0,0.04633672]
[1767812855390,0.011001,90980.0,90960.0,0.05733972]
[1767812855591,0.011001,90980.0,90960.0,0.05899787]
[1767812855984,0.09536254,90982.0,90960.0,0.04799487]
[1767812856180,0.01939413,90976.0,90960.0,0.00165815]
[1767812856385,0.10636454,90969.0,90960.0,0.00165815]
[1767812856779,0.011002,90967.0,90960.0,0.00165815]
[1767812856980,0.01885834,90966.0,90948.0,0.00243248]
[1767812857189,0.11422088,90965.0,90948.0,0.00243248]
[1767812857384,0.09536254,90963.0,90948.0,0.00243248]
[1767812857582,0.011003,90962.0,90948.0,0.00243248]
[1767812857886,0.10636554,90962.0,90948.0,0.00243248]
[1767812858190,0.011003,90960.0,90948.0,0.00243248]
[1767812858490,0.09536254,90959.0,90948.0,0.00243248]
[1767812858690,0.09536254,90959.0,90941.0,0.011005]
[1767812858893,0.011003,90958.0,90941.0,0.011005]
[1767812859077,0.011004,90953.0,90935.0,0.04633672]
[1767812859280,0.09536254,90955.0,90935.0,0.04633672]
[1767812860192,0.09536254,90955.0,90938.0,0.011006]
[1767812861692,0.09536254,90955.0,90934.0,0.09352]
[1767812861693,0.09536254,90950.0,90934.0,0.09352]
[1767812862488,0.10994288,90944.0,90929.0,0.00219953]
[1767812862892,0.09536254,90944.0,90929.0,0.00219953]
[1767812863093,0.09536254,90952.0,90931.0,0.05734272]
[1767812864290,0.09536254,90952.0,90934.0,0.011006]
[1767812864502,0.09536254,90952.0,90934.0,0.05734272]
[1767812865296,0.01508008,90958.0,90938.0,0.05734272]
[1767812865599,0.09352,90957.0,90939.0,0.04633672]
[1767812866787,0.09352,90956.0,90943.0,0.04633672]
[1767812868605,0.09352,90956.0,90939.0,0.04633672]
[1767812869102,0.09352,90956.0,90939.0,0.05734272]
[1767812869991,0.09352,90956.0,90941.0,0.011005]
[1767812870195,0.09352,90956.0,90940.0,0.011005]
[1767812870499,0.09352,90956.0,90941.0,0.04633672]
[1767812870705,0.09352,90956.0,90936.0,0.04633672]
[1767812870898,0.09352,90956.0,90937.0,0.04633672]
[1767812871092,0.09352,90956.0,90930.0,0.10995294]
[1767812871093,0.10833093,90949.0,90930.0,0.10995294]
[1767812871293,0.10833093,90949.0,90929.0,0.14205625]
[1767812871492,0.09536254,90949.0,90934.0,0.011006]
[1767812871694,0.09536254,90949.0,90936.0,0.011006]
[1767812871894,0.09536254,90949.0,90938.0,0.011006]
[1767812872202,0.011003,90962.0,90938.0,0.011006]
[1767812872203,0.09352,90954.0,90941.0,0.011005]
[1767812872395,0.09352,90956.0,90941.0,0.011005]
[1767812876007,0.09352,90956.0,90938.0,0.05734272]
[1767812876306,0.09352,90956.0,90940.0,0.011005]
[1767812877201,0.09352,90956.0,90938.0,0.04633672]
[1767812877511,0.09352,90956.0,90939.0,0.011005]
[1767812877800,0.09352,90956.0,90941.0,0.011005]
[1767812878612,0.18888254,90956.0,90938.0,0.04633672]
[1767812878804,0.18888254,90956.0,90944.0,0.011005]
[1767812879004,0.18888254,90956.0,90941.0,0.011005]
[1767812879307,0.18888254,90956.0,90938.0,0.05734272]
[1767812879907,0.19988654,90956.0,90938.0,0.05734272]
[1767812880108,0.09536254,90955.0,90938.0,0.05734272]
[1767812880310,0.011004,90954.0,90938.0,0.04633672]
[1767812880508,0.10636654,90951.0,90934.0,0.04633672]
[1767812880715,0.09536254,90951.0,90935.0,0.011006]
[1767812881213,0.011005,90948.0,90934.0,0.04633672]
[1767812881413,0.09536254,90944.0,90929.0,0.00219953]
[1767812881611,0.09536254,90944.0,90930.0,0.13411838]
[1767812882212,0.09536254,90944.0,90931.0,0.011006]
[1767812882608,0.00752198,90949.0,90931.0,0.011006]
[1767812882813,0.10331502,90949.0,90930.0,0.13411838]
[1767812883317,0.10679804,90948.0,90930.0,0.13411838]
[1767812883816,0.011005,90946.0,90930.0,0.13411838]
[1767812884013,0.09579304,90948.0,90930.0,0.13411838]
[1767812884014,0.011005,90945.0,90930.0,0.13411838]
[1767812884617,0.011005,90943.0,90930.0,0.13411838]